[Event "Late-Titled-Tuesday-Blitz-February-06-2024"]
[Site "Chess.com"]
[Date "2024.02.06"]
[Round "2"]
[White "platy3"]
[Black "xakevicius91"]
[Result "1-0"]
[WhiteElo "2950"]
[BlackElo "2606"]
[TimeControl "180+1"]
[EndTime "14:19:11 PST"]
[Termination "platy3 won by resignation"]

1. e4 {[%clk 0:03:00.9]} 1... c5 {[%clk 0:02:59.8]} 2. Nf3 {[%clk 0:02:58.9]}
2... e6 {[%clk 0:03:00]} 3. d4 {[%clk 0:02:58.7]} 3... cxd4 {[%clk 0:03:00.9]}
4. Nxd4 {[%clk 0:02:59.5]} 4... Nc6 {[%clk 0:03:01.3]} 5. Nc3 {[%clk 0:02:59.1]}
5... Qc7 {[%clk 0:03:01.3]} 6. Be3 {[%clk 0:02:59.6]} 6... a6 {[%clk 0:03:01.4]}
7. Qf3 {[%clk 0:03:00.2]} 7... Nf6 {[%clk 0:02:56.5]} 8. O-O-O {[%clk
0:02:59.1]} 8... d6 {[%clk 0:02:57]} 9. Qg3 {[%clk 0:02:58.3]} 9... Bd7 {[%clk
0:02:57.1]} 10. Be2 {[%clk 0:02:57.3]} 10... Rc8 {[%clk 0:02:56.4]} 11. f3
{[%clk 0:02:27.7]} 11... b5 {[%clk 0:02:50.2]} 12. Nxc6 {[%clk 0:02:27.5]} 12...
Bxc6 {[%clk 0:02:48.1]} 13. a3 {[%clk 0:02:27.9]} 13... Qb7 {[%clk 0:02:42.5]}
14. Rxd6 {[%clk 0:02:12.4]} 14... Bxd6 {[%clk 0:02:29.3]} 15. Qxd6 {[%clk
0:02:13.3]} 15... Qe7 {[%clk 0:02:28.3]} 16. Qe5 {[%clk 0:02:05.8]} 16... Bb7
{[%clk 0:02:16.6]} 17. Rd1 {[%clk 0:02:01.6]} 17... O-O {[%clk 0:02:15.3]} 18.
g4 {[%clk 0:01:42.4]} 18... Rfd8 {[%clk 0:02:12.8]} 19. Rxd8+ {[%clk 0:01:41.5]}
19... Rxd8 {[%clk 0:02:11]} 20. h4 {[%clk 0:01:34.6]} 20... Ne8 {[%clk
0:01:57.7]} 21. g5 {[%clk 0:01:32.3]} 21... Qd6 {[%clk 0:01:54.1]} 22. Qxd6
{[%clk 0:01:28.1]} 22... Nxd6 {[%clk 0:01:55]} 23. Bc5 {[%clk 0:01:28.5]} 23...
Bc6 {[%clk 0:01:46.3]} 24. b3 {[%clk 0:01:25.4]} 24... f6 {[%clk 0:01:41.2]} 25.
Bd3 {[%clk 0:01:08.1]} 25... Kf7 {[%clk 0:01:33]} 26. gxf6 {[%clk 0:01:05.8]}
26... gxf6 {[%clk 0:01:33.9]} 27. Kd2 {[%clk 0:01:04.3]} 27... Nb7 {[%clk
0:01:28.6]} 28. Bb6 {[%clk 0:00:58.9]} 28... Rg8 {[%clk 0:01:26.7]} 29. Ne2
{[%clk 0:00:57.7]} 29... Rg2 {[%clk 0:01:21.7]} 30. Ke3 {[%clk 0:00:57.9]} 30...
Rh2 {[%clk 0:01:21.5]} 31. Nd4 {[%clk 0:00:56.1]} 31... Bd7 {[%clk 0:01:21.3]}
32. c4 {[%clk 0:00:56.1]} 32... bxc4 {[%clk 0:01:14.3]} 33. Bxc4 {[%clk
0:00:56.1]} 33... a5 {[%clk 0:00:59]} 34. Ba6 {[%clk 0:00:53.7]} 34... Bc8
{[%clk 0:00:52.8]} 35. Bxa5 {[%clk 0:00:42.6]} 35... Rxh4 {[%clk 0:00:48.7]} 36.
Bc7 {[%clk 0:00:37.5]} 36... Rh1 {[%clk 0:00:45.3]} 37. b4 {[%clk 0:00:36]}
37... h5 {[%clk 0:00:32.9]} 38. Nb5 {[%clk 0:00:35.1]} 38... Ke7 {[%clk
0:00:31.1]} 39. Bb8 {[%clk 0:00:15.4]} 39... h4 {[%clk 0:00:29.6]} 40. Na7
{[%clk 0:00:13.5]} 40... Kd7 {[%clk 0:00:25.3]} 41. Bb5+ {[%clk 0:00:13.4]}
41... Kd8 {[%clk 0:00:24.8]} 42. Nc6+ {[%clk 0:00:12.9]} 42... Kd7 {[%clk
0:00:23.2]} 43. Na7+ {[%clk 0:00:09.9]} 43... Kd8 {[%clk 0:00:21.4]} 44. Kf2
{[%clk 0:00:10.2]} 44... Ra1 {[%clk 0:00:17.5]} 45. a4 {[%clk 0:00:10.3]} 45...
e5 {[%clk 0:00:14.6]} 46. Nc6+ {[%clk 0:00:09.8]} 46... Kd7 {[%clk 0:00:14.6]}
47. Nxe5+ {[%clk 0:00:10.3]} 47... Kd8 {[%clk 0:00:14]} 48. Nc6+ {[%clk
0:00:06]} 48... Kd7 {[%clk 0:00:14.5]} 49. Na7+ {[%clk 0:00:06.2]} 49... Kd8
{[%clk 0:00:14.6]} 50. Nxc8 {[%clk 0:00:06.1]} 50... Kxc8 {[%clk 0:00:14.9]} 51.
Bf4 {[%clk 0:00:06.7]} 51... Rb1 {[%clk 0:00:14]} 52. Kg2 {[%clk 0:00:04.5]}
52... Rxb4 {[%clk 0:00:14.2]} 53. Kh3 {[%clk 0:00:05]} 53... Nc5 {[%clk
0:00:14.8]} 54. Bd6 {[%clk 0:00:04]} 54... Rb3 {[%clk 0:00:03]} 55. Bxc5 {[%clk
0:00:03.4]} 55... Rxf3+ {[%clk 0:00:03.9]} 56. Kg4 {[%clk 0:00:03.2]} 56... Rb3
{[%clk 0:00:03.8]} 57. Kxh4 {[%clk 0:00:02.8]} 57... Rc3 {[%clk 0:00:04.4]} 58.
Bd4 {[%clk 0:00:02.7]} 58... Rb3 {[%clk 0:00:03.9]} 59. Bxf6 {[%clk 0:00:02.9]}
1-0

[Event "Late-Titled-Tuesday-Blitz-February-06-2024"]
[Site "Chess.com"]
[Date "2024.02.06"]
[Round "2"]
[White "Rsnr"]
[Black "Statham_01"]
[Result "1-0"]
[WhiteElo "2906"]
[BlackElo "2590"]
[TimeControl "180+1"]
[EndTime "14:19:12 PST"]
[Termination "Rsnr won by resignation"]

1. b3 {[%clk 0:03:00.9]} 1... e5 {[%clk 0:02:58.7]} 2. Bb2 {[%clk 0:03:01.8]}
2... Nc6 {[%clk 0:02:58.7]} 3. e3 {[%clk 0:03:02.3]} 3... d5 {[%clk 0:02:57.3]}
4. Bb5 {[%clk 0:03:02.3]} 4... Ne7 {[%clk 0:02:54.6]} 5. Bxe5 {[%clk 0:03:01.3]}
5... a6 {[%clk 0:02:54.9]} 6. Bxc6+ {[%clk 0:03:01.6]} 6... Nxc6 {[%clk
0:02:55.8]} 7. Bb2 {[%clk 0:03:02.2]} 7... Qg5 {[%clk 0:02:55.9]} 8. Qf3 {[%clk
0:02:58.7]} 8... Bd6 {[%clk 0:02:46.8]} 9. Nh3 {[%clk 0:02:39.6]} 9... Qg6
{[%clk 0:02:37.2]} 10. Nf4 {[%clk 0:01:47.3]} 10... Bxf4 {[%clk 0:02:11]} 11.
exf4 {[%clk 0:01:48.2]} 11... Nb4 {[%clk 0:01:27.8]} 12. Na3 {[%clk 0:01:39.4]}
12... O-O {[%clk 0:01:23.2]} 13. O-O {[%clk 0:01:35.6]} 13... Nxc2 {[%clk
0:01:19.6]} 14. Nxc2 {[%clk 0:01:36.5]} 14... Qxc2 {[%clk 0:01:20.2]} 15. Be5
{[%clk 0:01:31.1]} 15... c6 {[%clk 0:01:13.7]} 16. Qe3 {[%clk 0:00:58.3]} 16...
Qe4 {[%clk 0:01:09.5]} 17. Qc5 {[%clk 0:00:57]} 17... Re8 {[%clk 0:00:56.7]} 18.
Rfe1 {[%clk 0:00:54.2]} 18... Qg6 {[%clk 0:00:57]} 19. f3 {[%clk 0:00:36.4]}
19... Bf5 {[%clk 0:00:50.2]} 20. Qb6 {[%clk 0:00:31.9]} 20... h5 {[%clk
0:00:25.7]} 21. Qxb7 {[%clk 0:00:25.2]} 21... f6 {[%clk 0:00:20.7]} 22. Bd4
{[%clk 0:00:21.6]} 22... Bh3 {[%clk 0:00:21.1]} 23. g3 {[%clk 0:00:21.6]} 23...
Qd3 {[%clk 0:00:19.9]} 24. Be3 {[%clk 0:00:08.5]} 24... d4 {[%clk 0:00:19.4]}
25. Kf2 {[%clk 0:00:05.5]} 25... dxe3+ {[%clk 0:00:19.2]} 26. dxe3 {[%clk
0:00:06.4]} 26... Rad8 {[%clk 0:00:15.8]} 27. Re2 {[%clk 0:00:06.7]} 27... Qc3
{[%clk 0:00:13.1]} 28. Rae1 {[%clk 0:00:06.8]} 28... Rd2 {[%clk 0:00:12.3]} 29.
Qxa6 {[%clk 0:00:07.2]} 29... Rxe2+ {[%clk 0:00:11.7]} 30. Rxe2 {[%clk
0:00:06.7]} 30... Rd8 {[%clk 0:00:11.2]} 31. Qc4+ {[%clk 0:00:03.2]} 31... Qxc4
{[%clk 0:00:10.5]} 32. bxc4 {[%clk 0:00:04.1]} 32... Rd1 {[%clk 0:00:10.6]} 33.
Rc2 {[%clk 0:00:03.8]} 33... Rf1+ {[%clk 0:00:08.8]} 34. Ke2 {[%clk 0:00:04.2]}
34... Rh1 {[%clk 0:00:09.4]} 35. Kd3 {[%clk 0:00:04.7]} 35... h4 {[%clk
0:00:05.8]} 36. Kd4 {[%clk 0:00:04.6]} 36... Rd1+ {[%clk 0:00:05.4]} 37. Kc5
{[%clk 0:00:04.8]} 37... Bd7 {[%clk 0:00:03.6]} 38. gxh4 {[%clk 0:00:04.9]}
38... Rf1 {[%clk 0:00:03.1]} 39. a4 {[%clk 0:00:03.8]} 39... Rxf3 {[%clk
0:00:03]} 40. Rc3 {[%clk 0:00:04.5]} 40... Rf2 {[%clk 0:00:02.8]} 41. Ra3 {[%clk
0:00:05]} 41... Bc8 {[%clk 0:00:02.4]} 42. Kxc6 {[%clk 0:00:04.9]} 42... Rc2
{[%clk 0:00:03.2]} 43. c5 {[%clk 0:00:05.3]} 43... Kf7 {[%clk 0:00:03.9]} 44. a5
{[%clk 0:00:05.9]} 44... Ba6 {[%clk 0:00:04]} 45. Kb6 {[%clk 0:00:06.5]} 45...
Bf1 {[%clk 0:00:03.9]} 46. a6 {[%clk 0:00:07]} 46... Rb2+ {[%clk 0:00:04]} 47.
Kc7 {[%clk 0:00:07.3]} 47... Rc2 {[%clk 0:00:04.1]} 48. a7 {[%clk 0:00:07.9]}
48... Bg2 {[%clk 0:00:03.5]} 49. Ra5 {[%clk 0:00:08.4]} 49... Ba8 {[%clk
0:00:02.9]} 50. Kb8 {[%clk 0:00:08.7]} 50... Be4 {[%clk 0:00:03.4]} 51. a8=Q
{[%clk 0:00:09.3]} 51... Rb2+ {[%clk 0:00:03.4]} 52. Kc7 {[%clk 0:00:08.8]}
52... Bxa8 {[%clk 0:00:03.9]} 53. Rxa8 {[%clk 0:00:09.7]} 53... Rxh2 {[%clk
0:00:04.2]} 54. c6 {[%clk 0:00:09.5]} 54... Re2 {[%clk 0:00:04.7]} 55. Ra3
{[%clk 0:00:09.7]} 55... Ra2 {[%clk 0:00:04.5]} 56. Rxa2 {[%clk 0:00:09.4]} 1-0

[Event "Late-Titled-Tuesday-Blitz-February-06-2024"]
[Site "Chess.com"]
[Date "2024.02.06"]
[Round "2"]
[White "Arteler"]
[Black "DreamsAreFake"]
[Result "0-1"]
[WhiteElo "2499"]
[BlackElo "2722"]
[TimeControl "180+1"]
[EndTime "14:19:13 PST"]
[Termination "DreamsAreFake won by resignation"]

1. e4 {[%clk 0:03:00.9]} 1... c6 {[%clk 0:03:00.1]} 2. Nc3 {[%clk 0:02:59.3]}
2... Na6 {[%clk 0:03:00.4]} 3. Qf3 {[%clk 0:03:00.2]} 3... Nc7 {[%clk
0:03:00.5]} 4. d4 {[%clk 0:03:00.4]} 4... d5 {[%clk 0:02:59.6]} 5. Be3 {[%clk
0:02:52]} 5... g6 {[%clk 0:02:59.5]} 6. O-O-O {[%clk 0:02:47.8]} 6... Bg7 {[%clk
0:02:58.2]} 7. h4 {[%clk 0:02:48.1]} 7... h5 {[%clk 0:02:55.4]} 8. Qg3 {[%clk
0:02:48.6]} 8... Nf6 {[%clk 0:02:52.5]} 9. f3 {[%clk 0:02:40.1]} 9... dxe4
{[%clk 0:02:51.1]} 10. fxe4 {[%clk 0:02:39.1]} 10... Bg4 {[%clk 0:02:50.4]} 11.
Nf3 {[%clk 0:02:36.4]} 11... O-O {[%clk 0:02:50.2]} 12. Bf4 {[%clk 0:02:20.5]}
12... Ne6 {[%clk 0:02:43.2]} 13. Be5 {[%clk 0:02:20.8]} 13... b5 {[%clk
0:02:40.3]} 14. d5 {[%clk 0:02:21.3]} 14... Nc5 {[%clk 0:02:32.8]} 15. dxc6
{[%clk 0:02:20.1]} 15... Qa5 {[%clk 0:02:33.4]} 16. Bxb5 {[%clk 0:02:17.8]}
16... Nfxe4 {[%clk 0:02:30.2]} 17. Nxe4 {[%clk 0:02:13.7]} 17... Nxe4 {[%clk
0:02:28.6]} 18. Qf4 {[%clk 0:02:14]} 18... Qxb5 {[%clk 0:02:04.7]} 19. Bxg7
{[%clk 0:02:06.8]} 19... Kxg7 {[%clk 0:01:57.5]} 20. Qxe4 {[%clk 0:02:06.6]}
20... Rfc8 {[%clk 0:01:58.2]} 21. c7 {[%clk 0:01:50]} 21... Qa5 {[%clk
0:01:50.7]} 22. Rd8 {[%clk 0:01:32.3]} 22... Rxd8 {[%clk 0:01:46.2]} 23. cxd8=Q
{[%clk 0:01:33.2]} 23... Rxd8 {[%clk 0:01:46.5]} 24. Qe5+ {[%clk 0:01:31.1]}
24... Qxe5 {[%clk 0:01:45.2]} 25. Nxe5 {[%clk 0:01:32]} 25... Bf5 {[%clk
0:01:43.2]} 26. Nc6 {[%clk 0:01:24.2]} 26... Rd7 {[%clk 0:01:39.5]} 27. Rd1
{[%clk 0:01:20.3]} 27... Rc7 {[%clk 0:01:38.2]} 28. Nd4 {[%clk 0:01:20.1]} 28...
Be4 {[%clk 0:01:37.2]} 29. Rd2 {[%clk 0:01:19.2]} 29... a6 {[%clk 0:01:28.3]}
30. b4 {[%clk 0:01:11.1]} 30... Rc3 {[%clk 0:01:22.1]} 31. Re2 {[%clk
0:00:56.8]} 31... f5 {[%clk 0:01:21.4]} 32. Ne6+ {[%clk 0:00:52.1]} 32... Kf6
{[%clk 0:01:17.3]} 33. Nc5 {[%clk 0:00:52.5]} 33... Bd5 {[%clk 0:01:16.9]} 34.
Nxa6 {[%clk 0:00:41.7]} 34... e5 {[%clk 0:01:16.6]} 35. Rd2 {[%clk 0:00:37.5]}
35... Bxa2 {[%clk 0:01:11.5]} 36. Kb2 {[%clk 0:00:36.1]} 36... Rc6 {[%clk
0:01:04.9]} 37. b5 {[%clk 0:00:36.5]} 37... Rb6 {[%clk 0:01:05.1]} 38. Kxa2
{[%clk 0:00:36.7]} 38... Rxb5 {[%clk 0:01:05.8]} 39. Rd6+ {[%clk 0:00:36.1]}
39... Kg7 {[%clk 0:01:05.9]} 40. Nc7 {[%clk 0:00:33.4]} 40... Rb4 {[%clk
0:01:03.6]} 41. Ne6+ {[%clk 0:00:31.7]} 41... Kf7 {[%clk 0:01:00.7]} 42. Ng5+
{[%clk 0:00:32]} 42... Kg7 {[%clk 0:01:01.4]} 43. Rd7+ {[%clk 0:00:31.6]} 43...
Kg8 {[%clk 0:00:59]} 44. Rd8+ {[%clk 0:00:24]} 44... Kg7 {[%clk 0:00:59.1]} 45.
Rd7+ {[%clk 0:00:24.9]} 45... Kg8 {[%clk 0:00:59.5]} 46. g3 {[%clk 0:00:15.5]}
46... Rg4 {[%clk 0:00:58.1]} 47. Rd6 {[%clk 0:00:14.6]} 47... Kg7 {[%clk
0:00:55.3]} 48. Rd7+ {[%clk 0:00:14.9]} 48... Kg8 {[%clk 0:00:55.7]} 49. Rd3
{[%clk 0:00:12.7]} 49... f4 {[%clk 0:00:53.7]} 50. gxf4 {[%clk 0:00:13.6]} 50...
exf4 {[%clk 0:00:52.6]} 51. Rd6 {[%clk 0:00:12.2]} 51... Kg7 {[%clk 0:00:50]}
52. Rd7+ {[%clk 0:00:12.4]} 52... Kf6 {[%clk 0:00:49.8]} 53. Rf7+ {[%clk
0:00:11.9]} 53... Ke5 {[%clk 0:00:50]} 54. c4 {[%clk 0:00:12.2]} 54... Rxh4
{[%clk 0:00:48.7]} 55. Nf3+ {[%clk 0:00:12.6]} 55... Ke6 {[%clk 0:00:48.8]} 56.
Rf8 {[%clk 0:00:11.4]} 56... Rg4 {[%clk 0:00:47.1]} 57. c5 {[%clk 0:00:11.4]}
57... Kd5 {[%clk 0:00:47]} 58. Rc8 {[%clk 0:00:10.1]} 58... Rg3 {[%clk
0:00:45.5]} 59. Nd2 {[%clk 0:00:10.3]} 59... Rg2 {[%clk 0:00:43.9]} 60. Kb3
{[%clk 0:00:08.4]} 60... h4 {[%clk 0:00:38.9]} 61. Kb4 {[%clk 0:00:04.3]} 61...
h3 {[%clk 0:00:37.8]} 62. Rd8+ {[%clk 0:00:04.9]} 62... Kc6 {[%clk 0:00:37.5]}
63. Nc4 {[%clk 0:00:04.6]} 63... h2 {[%clk 0:00:36.6]} 64. Rh8 {[%clk
0:00:04.8]} 64... g5 {[%clk 0:00:33.5]} 65. Ne5+ {[%clk 0:00:05.3]} 65... Kd5
{[%clk 0:00:33.6]} 66. c6 {[%clk 0:00:05.9]} 66... Kxe5 {[%clk 0:00:32.4]} 67.
c7 {[%clk 0:00:06.1]} 67... Rc2 {[%clk 0:00:33.1]} 68. Rxh2 {[%clk 0:00:03.2]}
68... Rxc7 {[%clk 0:00:33.2]} 0-1

[Event "Late-Titled-Tuesday-Blitz-February-06-2024"]
[Site "Chess.com"]
[Date "2024.02.06"]
[Round "2"]
[White "Felix-Rose"]
[Black "balachess2006"]
[Result "0-1"]
[WhiteElo "2376"]
[BlackElo "2698"]
[TimeControl "180+1"]
[EndTime "14:19:13 PST"]
[Termination "balachess2006 won by checkmate"]

1. e4 {[%clk 0:03:00.2]} 1... c5 {[%clk 0:02:57.9]} 2. Nf3 {[%clk 0:03:00.4]}
2... Nc6 {[%clk 0:02:58]} 3. d4 {[%clk 0:03:00.6]} 3... cxd4 {[%clk 0:02:58.9]}
4. Nxd4 {[%clk 0:03:01.5]} 4... g6 {[%clk 0:02:59.2]} 5. c4 {[%clk 0:03:01.6]}
5... Nf6 {[%clk 0:02:59.1]} 6. Nc3 {[%clk 0:03:01.5]} 6... d6 {[%clk 0:02:57.8]}
7. f3 {[%clk 0:03:01.8]} 7... Nxd4 {[%clk 0:02:56.6]} 8. Qxd4 {[%clk 0:03:02.7]}
8... Bg7 {[%clk 0:02:57.5]} 9. Be3 {[%clk 0:03:03]} 9... O-O {[%clk 0:02:58]}
10. Qd2 {[%clk 0:03:03.8]} 10... a5 {[%clk 0:02:58.1]} 11. Na4 {[%clk
0:03:03.8]} 11... Be6 {[%clk 0:02:54.6]} 12. Nb6 {[%clk 0:02:59.8]} 12... Rb8
{[%clk 0:02:45]} 13. Qxa5 {[%clk 0:02:58.4]} 13... Nd7 {[%clk 0:02:43.2]} 14.
Qb4 {[%clk 0:02:57.8]} 14... f5 {[%clk 0:02:37.5]} 15. exf5 {[%clk 0:02:43.2]}
15... Rxf5 {[%clk 0:02:38.4]} 16. Nxd7 {[%clk 0:02:39.8]} 16... Qxd7 {[%clk
0:02:36.9]} 17. Bd3 {[%clk 0:02:14.3]} 17... Re5 {[%clk 0:02:34.5]} 18. Kf2
{[%clk 0:02:11.5]} 18... b5 {[%clk 0:02:22.9]} 19. Bd4 {[%clk 0:01:53.8]} 19...
Qc8 {[%clk 0:01:47]} 20. cxb5 {[%clk 0:01:33.8]} 20... Rd5 {[%clk 0:01:03.4]}
21. Bxg7 {[%clk 0:01:25.2]} 21... Rxd3 {[%clk 0:01:02]} 22. Rhc1 {[%clk
0:01:02.1]} 22... Qd7 {[%clk 0:00:51.2]} 23. Bc3 {[%clk 0:00:46.6]} 23... Rxb5
{[%clk 0:00:48.8]} 24. Qe4 {[%clk 0:00:45.5]} 24... Rdd5 {[%clk 0:00:36.9]} 25.
a4 {[%clk 0:00:42.8]} 25... Bf5 {[%clk 0:00:28.2]} 26. Qh4 {[%clk 0:00:39.2]}
26... Rb3 {[%clk 0:00:24.9]} 27. Qh6 {[%clk 0:00:34.2]} 27... Qa7+ {[%clk
0:00:22.6]} 28. Qe3 {[%clk 0:00:29.3]} 28... Qb7 {[%clk 0:00:18.5]} 29. a5
{[%clk 0:00:23.7]} 29... Rd3 {[%clk 0:00:18.6]} 30. Qe2 {[%clk 0:00:18.9]} 30...
Rdxc3 {[%clk 0:00:14.3]} 31. a6 {[%clk 0:00:12.7]} 31... Qa7+ {[%clk 0:00:13.3]}
32. Kf1 {[%clk 0:00:11.6]} 32... Bd3 {[%clk 0:00:12.5]} 33. bxc3 {[%clk
0:00:12.1]} 33... Bxe2+ {[%clk 0:00:12.5]} 34. Kxe2 {[%clk 0:00:13]} 34... Rb6
{[%clk 0:00:13.1]} 35. Rcb1 {[%clk 0:00:12.5]} 35... Rxb1 {[%clk 0:00:11.8]} 36.
Rxb1 {[%clk 0:00:12.5]} 36... Qxa6+ {[%clk 0:00:12.4]} 37. Kd2 {[%clk
0:00:13.2]} 37... Kf7 {[%clk 0:00:13]} 38. Rb2 {[%clk 0:00:13.3]} 38... Qa3
{[%clk 0:00:12.8]} 39. Kc2 {[%clk 0:00:13.6]} 39... Qa1 {[%clk 0:00:13.3]} 40.
c4 {[%clk 0:00:13.5]} 40... Qg1 {[%clk 0:00:12.8]} 41. Kb3 {[%clk 0:00:13.8]}
41... Qxh2 {[%clk 0:00:13.1]} 42. Kb4 {[%clk 0:00:14.4]} 42... Qe5 {[%clk
0:00:13.6]} 43. Rd2 {[%clk 0:00:13.6]} 43... Qc5+ {[%clk 0:00:14.5]} 44. Kc3
{[%clk 0:00:13.8]} 44... h6 {[%clk 0:00:15.4]} 45. Rd5 {[%clk 0:00:14.1]} 45...
Qa3+ {[%clk 0:00:15.6]} 46. Kd4 {[%clk 0:00:14.6]} 46... e5+ {[%clk 0:00:14.8]}
47. Ke4 {[%clk 0:00:13.2]} 47... Ke6 {[%clk 0:00:15.1]} 48. Rd3 {[%clk
0:00:13.3]} 48... Qc5 {[%clk 0:00:15.1]} 49. g4 {[%clk 0:00:13]} 49... Qxc4+
{[%clk 0:00:15.3]} 50. Ke3 {[%clk 0:00:13.1]} 50... d5 {[%clk 0:00:15.8]} 51. g5
{[%clk 0:00:13]} 51... hxg5 {[%clk 0:00:15.7]} 52. Ra3 {[%clk 0:00:13.8]} 52...
Kf5 {[%clk 0:00:15.8]} 53. Kf2 {[%clk 0:00:13.7]} 53... Qc5+ {[%clk 0:00:16]}
54. Kg3 {[%clk 0:00:14.3]} 54... Qxa3 {[%clk 0:00:15.5]} 55. Kh3 {[%clk
0:00:15.2]} 55... g4+ {[%clk 0:00:14.8]} 56. Kh4 {[%clk 0:00:15.3]} 56... gxf3
{[%clk 0:00:11]} 57. Kg3 {[%clk 0:00:14]} 57... Qe3 {[%clk 0:00:11.5]} 58. Kh4
{[%clk 0:00:14.6]} 58... Qg5+ {[%clk 0:00:11.4]} 59. Kh3 {[%clk 0:00:14.9]}
59... Qg4+ {[%clk 0:00:12.3]} 60. Kh2 {[%clk 0:00:14.9]} 60... Qg2# {[%clk
0:00:13.2]} 0-1

[Event "Late-Titled-Tuesday-Blitz-February-06-2024"]
[Site "Chess.com"]
[Date "2024.02.06"]
[Round "2"]
[White "mr_gustavo"]
[Black "semchik73"]
[Result "0-1"]
[WhiteElo "2689"]
[BlackElo "2398"]
[TimeControl "180+1"]
[EndTime "14:19:14 PST"]
[Termination "semchik73 won on time"]

1. Nf3 {[%clk 0:03:00.9]} 1... d5 {[%clk 0:02:59.6]} 2. b3 {[%clk 0:03:00.9]}
2... Nf6 {[%clk 0:02:58.1]} 3. Bb2 {[%clk 0:03:01.5]} 3... g6 {[%clk 0:02:58.6]}
4. g3 {[%clk 0:03:01.7]} 4... Bg7 {[%clk 0:02:59]} 5. Bg2 {[%clk 0:03:02.1]}
5... O-O {[%clk 0:02:58.2]} 6. O-O {[%clk 0:03:02.4]} 6... c5 {[%clk 0:02:58.7]}
7. d4 {[%clk 0:02:59.3]} 7... Ne4 {[%clk 0:02:58.7]} 8. e3 {[%clk 0:02:53.7]}
8... Nc6 {[%clk 0:02:57.8]} 9. Nbd2 {[%clk 0:02:53.3]} 9... f5 {[%clk 0:02:53]}
10. Qc1 {[%clk 0:02:42.1]} 10... Qb6 {[%clk 0:02:44.1]} 11. a3 {[%clk 0:02:38]}
11... cxd4 {[%clk 0:02:41.5]} 12. exd4 {[%clk 0:02:35.5]} 12... Nxd4 {[%clk
0:02:41.3]} 13. Nxd4 {[%clk 0:02:07.1]} 13... Bxd4 {[%clk 0:02:40.1]} 14. Nf3
{[%clk 0:02:07]} 14... Bxf2+ {[%clk 0:02:34.7]} 15. Kh1 {[%clk 0:02:05.7]} 15...
Be3 {[%clk 0:02:33.8]} 16. Qd1 {[%clk 0:02:02]} 16... Nf2+ {[%clk 0:02:23.8]}
17. Rxf2 {[%clk 0:02:01.6]} 17... Bxf2 {[%clk 0:02:24.2]} 18. Qxd5+ {[%clk
0:02:01.9]} 18... Qe6 {[%clk 0:02:11.7]} 19. Qd2 {[%clk 0:01:52.8]} 19... Be3
{[%clk 0:02:11.2]} 20. Qc3 {[%clk 0:01:52.7]} 20... Qf6 {[%clk 0:02:06.3]} 21.
Ne5 {[%clk 0:01:44.8]} 21... Bb6 {[%clk 0:01:59.2]} 22. Re1 {[%clk 0:01:36.3]}
22... Be6 {[%clk 0:01:52.7]} 23. Qb4 {[%clk 0:01:29]} 23... Rac8 {[%clk
0:01:38.2]} 24. Nd3 {[%clk 0:01:16.6]} 24... Qf7 {[%clk 0:01:27.5]} 25. Nf4
{[%clk 0:01:12.4]} 25... Rxc2 {[%clk 0:01:12.5]} 26. Nxe6 {[%clk 0:01:11.5]}
26... Rxb2 {[%clk 0:01:02]} 27. Nxf8 {[%clk 0:00:45.4]} 27... Kxf8 {[%clk
0:01:01.6]} 28. Qc3 {[%clk 0:00:41.1]} 28... Qf6 {[%clk 0:00:57]} 29. Qc8+
{[%clk 0:00:39.1]} 29... Kg7 {[%clk 0:00:54.7]} 30. Qxb7 {[%clk 0:00:37.9]}
30... Bc5 {[%clk 0:00:48.3]} 31. b4 {[%clk 0:00:37.3]} 31... Qc3 {[%clk
0:00:45.4]} 32. Rd1 {[%clk 0:00:07.5]} 32... Qc2 {[%clk 0:00:40]} 33. Qd5 {[%clk
0:00:03.8]} 33... Bd6 {[%clk 0:00:25.3]} 34. Rf1 {[%clk 0:00:03.1]} 34... Qc3
{[%clk 0:00:17.1]} 35. Qa5 {[%clk 0:00:03]} 35... Qd2 {[%clk 0:00:11.9]} 36. Qd5
{[%clk 0:00:02.2]} 36... Qxd5 {[%clk 0:00:10.7]} 37. Bxd5 {[%clk 0:00:03.1]}
37... Rd2 {[%clk 0:00:10.1]} 38. Bc4 {[%clk 0:00:03.2]} 38... e5 {[%clk
0:00:09.7]} 39. Rc1 {[%clk 0:00:03.7]} 39... e4 {[%clk 0:00:10]} 40. Kg1 {[%clk
0:00:04.2]} 40... e3 {[%clk 0:00:09.6]} 41. Kf1 {[%clk 0:00:02.6]} 41... Rxh2
{[%clk 0:00:09.5]} 42. Rc3 {[%clk 0:00:02.7]} 42... f4 {[%clk 0:00:07.7]} 43.
gxf4 {[%clk 0:00:03.6]} 43... Bxf4 {[%clk 0:00:07.8]} 44. Be2 {[%clk 0:00:02.6]}
44... Rf2+ {[%clk 0:00:07.3]} 45. Ke1 {[%clk 0:00:02.5]} 45... Rh2 {[%clk
0:00:06.8]} 46. Kd1 {[%clk 0:00:02.7]} 46... Rh1+ {[%clk 0:00:06.4]} 47. Kc2
{[%clk 0:00:02.7]} 47... Ra1 {[%clk 0:00:06.1]} 48. Kd3 {[%clk 0:00:02.9]} 48...
Ra2 {[%clk 0:00:03.8]} 49. Bf3 {[%clk 0:00:03.2]} 49... g5 {[%clk 0:00:03.5]}
50. Rc1 {[%clk 0:00:02.2]} 50... Rxa3+ {[%clk 0:00:02.8]} 51. Ke4 {[%clk
0:00:02.7]} 51... Ra4 {[%clk 0:00:02.5]} 52. Rb1 {[%clk 0:00:02.4]} 52... a5
{[%clk 0:00:02.2]} 53. Kf5 {[%clk 0:00:02.6]} 53... Rxb4 {[%clk 0:00:02.6]} 54.
Rd1 {[%clk 0:00:02.6]} 54... a4 {[%clk 0:00:02.6]} 55. Rd7+ {[%clk 0:00:02.4]}
55... Kf8 {[%clk 0:00:03.2]} 56. Kf6 {[%clk 0:00:02]} 56... Rb6+ {[%clk
0:00:02.9]} 57. Kf5 {[%clk 0:00:02.6]} 57... a3 {[%clk 0:00:03]} 58. Ra7 {[%clk
0:00:03.2]} 58... Bd6 {[%clk 0:00:02]} 59. Ke6 {[%clk 0:00:02.9]} 59... Bb8+
{[%clk 0:00:01.4]} 0-1